[Event "Titled Tuesday Blitz June 20 Early 2023"]
[White "Maksimovic, Bojan"]
[Black "Timerkhanov, Alexander"]
[WhiteFideId "14408120"]
[BlackFideId "24177938"]
[WhiteElo "2457"]
[BlackElo "2278"]
[Result "0-1"]
[Round "9"]
[TimeControl "180+2"]
[Date "2023.06.20"]
[WhiteClock "0:00:00"]
[BlackClock "0:00:59"]
[Board "32"]

1. e4 {[%clk 0:03:00]}  c5 {[%clk 0:02:59]} 2. Nf3 {[%clk 0:03:01]}  a6 {[%clk 0:02:58]} 3. c3 {[%clk 0:03:01]}  d5 {[%clk 0:02:58]} 4. exd5 {[%clk 0:03:01]}  Qxd5 {[%clk 0:02:59]} 5. d4 {[%clk 0:03:01]}  Nf6 {[%clk 0:02:58]} 6. Be3 {[%clk 0:02:59]}  cxd4 {[%clk 0:02:57]} 7. cxd4 {[%clk 0:02:59]}  e6 {[%clk 0:02:58]} 8. Nc3 {[%clk 0:02:59]}  Qd6 {[%clk 0:02:57]} 9. Bd3 {[%clk 0:02:58]}  Nc6 {[%clk 0:02:57]} 10. O-O {[%clk 0:02:57]}  Be7 {[%clk 0:02:57]} 11. a3 {[%clk 0:02:55]}  b5 {[%clk 0:02:56]} 12. Ne4 {[%clk 0:02:47]}  Nxe4 {[%clk 0:02:54]} 13. Bxe4 {[%clk 0:02:47]}  Bb7 {[%clk 0:02:54]} 14. Rc1 {[%clk 0:02:10]}  Na5 {[%clk 0:02:33]} 15. Qd3 {[%clk 0:01:55]}  Bxe4 {[%clk 0:02:28]} 16. Qxe4 {[%clk 0:01:54]}  O-O {[%clk 0:02:27]} 17. Bf4 {[%clk 0:01:53]}  Qd5 {[%clk 0:02:20]} 18. Qxd5 {[%clk 0:01:41]}  exd5 {[%clk 0:02:20]} 19. Rc7 {[%clk 0:01:35]}  Rfe8 {[%clk 0:02:14]} 20. Re1 {[%clk 0:01:22]}  Bf6 {[%clk 0:02:04]} 21. Rxe8+ {[%clk 0:01:22]}  Rxe8 {[%clk 0:02:04]} 22. Be5 {[%clk 0:01:22]}  Bxe5 {[%clk 0:01:57]} 23. Nxe5 {[%clk 0:00:57]}  Nc4 {[%clk 0:01:55]} 24. f3 {[%clk 0:00:24]}  Nxb2 {[%clk 0:01:53]} 25. Nxf7 {[%clk 0:00:25]}  Nd3 {[%clk 0:01:48]} 26. h4 {[%clk 0:00:25]}  a5 {[%clk 0:01:40]} 27. Nd6 {[%clk 0:00:22]}  Rb8 {[%clk 0:01:39]} 28. Nf5 {[%clk 0:00:14]}  b4 {[%clk 0:01:36]} 29. axb4 {[%clk 0:00:15]}  axb4 {[%clk 0:01:36]} 30. Rxg7+ {[%clk 0:00:01]}  Kh8 {[%clk 0:01:33]} 31. Ra7 {[%clk 0:00:01]}  b3 {[%clk 0:01:28]} 32. Ra1 {[%clk 0:00:01]}  b2 {[%clk 0:01:27]} 33. Rb1 {[%clk 0:00:01]}  Rc8 {[%clk 0:01:28]} 34. Kh2 {[%clk 0:00:02]}  Rc1 {[%clk 0:01:25]} 35. Rxb2 {[%clk 0:00:02]}  Nxb2 {[%clk 0:01:25]} 36. Ne3 {[%clk 0:00:03]}  Nc4 {[%clk 0:01:16]} 37. Nxd5 {[%clk 0:00:03]}  Rd1 {[%clk 0:01:16]} 38. Nf6 {[%clk 0:00:02]}  Rxd4 {[%clk 0:01:16]} 39. Kg3 {[%clk 0:00:02]}  Nd6 {[%clk 0:01:15]} 40. h5 {[%clk 0:00:02]}  Nf5+ {[%clk 0:01:15]} 41. Kf2 {[%clk 0:00:02]}  Kg7 {[%clk 0:01:10]} 42. Ne4 {[%clk 0:00:02]}  Ra4 {[%clk 0:01:07]} 43. g4 {[%clk 0:00:02]}  Ra2+ {[%clk 0:01:07]} 44. Ke1 {[%clk 0:00:02]}  Nd4 {[%clk 0:01:07]} 45. Nd2 {[%clk 0:00:01]}  h6 {[%clk 0:01:02]} 46. f4 {[%clk 0:00:01]}  Ne6 {[%clk 0:01:00]} 47. f5 {[%clk 0:00:02]}  Nd4 {[%clk 0:01:01]} 48. Nc4 {[%clk 0:00:00]}  Kf6 {[%clk 0:00:59]} 0-1


[Site "https://www.chess.com"]

[Event "Titled Tuesday Blitz June 20 Early 2023"]
[White "Sattarov, Bobir"]
[Black "Sowul, Bartosz"]
[WhiteFideId "14203081"]
[BlackFideId "1137590"]
[WhiteElo "2351"]
[BlackElo "2188"]
[Result "1-0"]
[Round "9"]
[TimeControl "180+2"]
[Date "2023.06.20"]
[WhiteClock "0:01:34"]
[BlackClock "0:00:03"]
[Board "35"]

1. e4 {[%clk 0:03:00]}  c5 {[%clk 0:03:00]} 2. Nf3 {[%clk 0:03:01]}  d6 {[%clk 0:03:00]} 3. d4 {[%clk 0:03:01]}  cxd4 {[%clk 0:03:01]} 4. Nxd4 {[%clk 0:03:02]}  Nf6 {[%clk 0:03:01]} 5. f3 {[%clk 0:03:02]}  e5 {[%clk 0:03:01]} 6. Nb3 {[%clk 0:03:03]}  d5 {[%clk 0:03:01]} 7. Bg5 {[%clk 0:03:03]}  Be6 {[%clk 0:03:02]} 8. Bxf6 {[%clk 0:03:03]}  gxf6 {[%clk 0:03:03]} 9. exd5 {[%clk 0:03:04]}  Qxd5 {[%clk 0:03:03]} 10. Qxd5 {[%clk 0:03:04]}  Bxd5 {[%clk 0:03:04]} 11. Nc3 {[%clk 0:03:05]}  Be6 {[%clk 0:03:05]} 12. O-O-O {[%clk 0:03:04]}  Nc6 {[%clk 0:03:03]} 13. Nd5 {[%clk 0:03:04]}  Bh6+ {[%clk 0:01:54]} 14. Kb1 {[%clk 0:03:03]}  Rd8 {[%clk 0:01:49]} 15. Bc4 {[%clk 0:03:00]}  Kf8 {[%clk 0:01:41]} 16. Nc5 {[%clk 0:02:59]}  Nd4 {[%clk 0:01:19]} 17. Nxe6+ {[%clk 0:02:56]}  fxe6 {[%clk 0:01:13]} 18. Nxf6 {[%clk 0:02:55]}  Ke7 {[%clk 0:01:11]} 19. Ng4 {[%clk 0:02:53]}  Bg7 {[%clk 0:01:11]} 20. Rhe1 {[%clk 0:02:51]}  b5 {[%clk 0:01:10]} 21. Bd3 {[%clk 0:02:50]}  Rd5 {[%clk 0:01:08]} 22. c3 {[%clk 0:02:50]}  Nf5 {[%clk 0:01:01]} 23. Bf1 {[%clk 0:02:39]}  Rhd8 {[%clk 0:00:55]} 24. Rxd5 {[%clk 0:02:38]}  Rxd5 {[%clk 0:00:55]} 25. Kc2 {[%clk 0:02:38]}  h5 {[%clk 0:00:51]} 26. Ne3 {[%clk 0:02:37]}  Nxe3+ {[%clk 0:00:47]} 27. Rxe3 {[%clk 0:02:38]}  Bh6 {[%clk 0:00:44]} 28. Rd3 {[%clk 0:02:34]}  a6 {[%clk 0:00:42]} 29. a4 {[%clk 0:02:23]}  bxa4 {[%clk 0:00:29]} 30. Rxd5 {[%clk 0:02:23]}  exd5 {[%clk 0:00:30]} 31. Bxa6 {[%clk 0:02:23]}  h4 {[%clk 0:00:24]} 32. g3 {[%clk 0:02:21]}  h3 {[%clk 0:00:20]} 33. Bf1 {[%clk 0:02:11]}  Be3 {[%clk 0:00:17]} 34. Bxh3 {[%clk 0:02:11]}  Bg1 {[%clk 0:00:17]} 35. Bf1 {[%clk 0:02:11]}  Bxh2 {[%clk 0:00:17]} 36. g4 {[%clk 0:02:11]}  e4 {[%clk 0:00:13]} 37. fxe4 {[%clk 0:02:11]}  dxe4 {[%clk 0:00:13]} 38. Bb5 {[%clk 0:02:11]}  Kf6 {[%clk 0:00:07]} 39. Bxa4 {[%clk 0:02:11]}  Kg5 {[%clk 0:00:08]} 40. Bc6 {[%clk 0:02:04]}  Kf4 {[%clk 0:00:07]} 41. g5 {[%clk 0:01:55]}  Kxg5 {[%clk 0:00:07]} 42. Bxe4 {[%clk 0:01:55]}  Kf6 {[%clk 0:00:08]} 43. Kd3 {[%clk 0:01:53]}  Ke7 {[%clk 0:00:09]} 44. b4 {[%clk 0:01:50]}  Kd6 {[%clk 0:00:09]} 45. Kc4 {[%clk 0:01:49]}  Kc7 {[%clk 0:00:09]} 46. Kb5 {[%clk 0:01:48]}  Kb8 {[%clk 0:00:09]} 47. c4 {[%clk 0:01:48]}  Kc7 {[%clk 0:00:10]} 48. c5 {[%clk 0:01:47]}  Bf4 {[%clk 0:00:08]} 49. Kc4 {[%clk 0:01:47]}  Kb8 {[%clk 0:00:06]} 50. b5 {[%clk 0:01:47]}  Bg3 {[%clk 0:00:06]} 51. b6 {[%clk 0:01:47]}  Bh2 {[%clk 0:00:06]} 52. Kd5 {[%clk 0:01:47]}  Bg3 {[%clk 0:00:05]} 53. Ke6 {[%clk 0:01:43]}  Kc8 {[%clk 0:00:06]} 54. Bf5 {[%clk 0:01:40]}  Kd8 {[%clk 0:00:06]} 55. c6 {[%clk 0:01:37]}  Kc8 {[%clk 0:00:03]} 56. Ke7+ {[%clk 0:01:33]}  Kb8 {[%clk 0:00:04]} 57. Kd7 {[%clk 0:01:34]}  Bc7 {[%clk 0:00:01]} 58. bxc7+ {[%clk 0:01:33]}  Ka7 {[%clk 0:00:02]} 59. c8=Q {[%clk 0:01:34]}  Kb6 {[%clk 0:00:03]} 60. Qb7+ {[%clk 0:01:34]} 1-0


[Site "https://www.chess.com"]

[Event "Titled Tuesday Blitz June 20 Early 2023"]
[White "Kvaloy, Aksel Bu"]
[Black "Howell, David W L"]
[WhiteFideId "1528815"]
[BlackFideId "410608"]
[WhiteElo "2318"]
[BlackElo "2567"]
[Result "1/2-1/2"]
[Round "9"]
[TimeControl "180+2"]
[Date "2023.06.20"]
[WhiteClock "0:00:08"]
[BlackClock "0:00:05"]
[Board "36"]

1. e4 {[%clk 0:03:00]}  e6 {[%clk 0:02:59]} 2. d4 {[%clk 0:03:00]}  d5 {[%clk 0:03:00]} 3. Nc3 {[%clk 0:03:00]}  dxe4 {[%clk 0:02:54]} 4. Nxe4 {[%clk 0:03:00]}  Bd7 {[%clk 0:02:51]} 5. Nf3 {[%clk 0:02:59]}  Bc6 {[%clk 0:02:50]} 6. Ng3 {[%clk 0:02:51]}  Nd7 {[%clk 0:02:49]} 7. c3 {[%clk 0:02:49]}  Ngf6 {[%clk 0:02:50]} 8. Bd3 {[%clk 0:02:46]}  Be7 {[%clk 0:02:47]} 9. O-O {[%clk 0:02:47]}  O-O {[%clk 0:02:48]} 10. b3 {[%clk 0:02:43]}  a5 {[%clk 0:02:48]} 11. a3 {[%clk 0:02:33]}  Re8 {[%clk 0:02:41]} 12. Bb2 {[%clk 0:02:33]}  Bf8 {[%clk 0:02:21]} 13. c4 {[%clk 0:02:32]}  g6 {[%clk 0:02:14]} 14. Qe2 {[%clk 0:02:29]}  Bxf3 {[%clk 0:02:02]} 15. Qxf3 {[%clk 0:02:29]}  c6 {[%clk 0:02:03]} 16. Rad1 {[%clk 0:02:26]}  Bg7 {[%clk 0:02:03]} 17. Rfe1 {[%clk 0:02:25]}  Qb6 {[%clk 0:01:49]} 18. Bc2 {[%clk 0:02:20]}  Rad8 {[%clk 0:01:49]} 19. h4 {[%clk 0:02:12]}  h5 {[%clk 0:01:50]} 20. Ne4 {[%clk 0:02:02]}  Nxe4 {[%clk 0:01:49]} 21. Qxe4 {[%clk 0:02:03]}  Nf6 {[%clk 0:01:40]} 22. Qf4 {[%clk 0:02:02]}  Ng4 {[%clk 0:01:37]} 23. g3 {[%clk 0:01:57]}  Rd7 {[%clk 0:01:32]} 24. Kg2 {[%clk 0:01:42]}  Red8 {[%clk 0:01:16]} 25. f3 {[%clk 0:01:41]}  Nf6 {[%clk 0:01:15]} 26. d5 {[%clk 0:01:30]}  e5 {[%clk 0:00:36]} 27. Bxe5 {[%clk 0:01:17]}  cxd5 {[%clk 0:00:36]} 28. Bd4 {[%clk 0:01:18]}  Qc6 {[%clk 0:00:31]} 29. c5 {[%clk 0:01:14]}  Nh7 {[%clk 0:00:29]} 30. b4 {[%clk 0:01:11]}  axb4 {[%clk 0:00:26]} 31. axb4 {[%clk 0:01:12]}  Bxd4 {[%clk 0:00:24]} 32. Qxd4 {[%clk 0:01:13]}  Nf8 {[%clk 0:00:24]} 33. g4 {[%clk 0:01:00]}  Ne6 {[%clk 0:00:22]} 34. Qf6 {[%clk 0:01:00]}  Ng7 {[%clk 0:00:18]} 35. Qd4 {[%clk 0:00:35]}  b6 {[%clk 0:00:17]} 36. Bb3 {[%clk 0:00:28]}  bxc5 {[%clk 0:00:16]} 37. Qxc5 {[%clk 0:00:29]}  Qxc5 {[%clk 0:00:12]} 38. bxc5 {[%clk 0:00:30]}  Ne6 {[%clk 0:00:12]} 39. Rc1 {[%clk 0:00:19]}  Nf4+ {[%clk 0:00:08]} 40. Kg3 {[%clk 0:00:17]}  Nd3 {[%clk 0:00:09]} 41. c6 {[%clk 0:00:17]}  Rc7 {[%clk 0:00:09]} 42. Red1 {[%clk 0:00:11]}  Nxc1 {[%clk 0:00:09]} 43. Rxc1 {[%clk 0:00:12]}  d4 {[%clk 0:00:07]} 44. Kf2 {[%clk 0:00:09]}  d3 {[%clk 0:00:07]} 45. Rc3 {[%clk 0:00:07]}  d2 {[%clk 0:00:04]} 46. Bd1 {[%clk 0:00:07]}  Rd6 {[%clk 0:00:04]} 47. Ke3 {[%clk 0:00:07]}  Rcxc6 {[%clk 0:00:05]} 48. Rxc6 {[%clk 0:00:05]}  Rxc6 {[%clk 0:00:06]} 49. Kxd2 {[%clk 0:00:06]}  hxg4 {[%clk 0:00:05]} 50. fxg4 {[%clk 0:00:06]}  Kg7 {[%clk 0:00:06]} 51. Ke3 {[%clk 0:00:07]}  Rc3+ {[%clk 0:00:07]} 52. Kf4 {[%clk 0:00:06]}  Rh3 {[%clk 0:00:07]} 53. h5 {[%clk 0:00:05]}  Rh2 {[%clk 0:00:06]} 54. hxg6 {[%clk 0:00:04]}  fxg6 {[%clk 0:00:05]} 55. g5 {[%clk 0:00:04]}  Rb2 {[%clk 0:00:05]} 56. Bf3 {[%clk 0:00:04]}  Rb4+ {[%clk 0:00:06]} 57. Be4 {[%clk 0:00:05]}  Kf7 {[%clk 0:00:06]} 58. Ke5 {[%clk 0:00:05]}  Rb5+ {[%clk 0:00:06]} 59. Kf4 {[%clk 0:00:06]}  Ra5 {[%clk 0:00:07]} 60. Bd3 {[%clk 0:00:05]}  Ra4+ {[%clk 0:00:06]} 61. Be4 {[%clk 0:00:06]}  Ra6 {[%clk 0:00:07]} 62. Ke5 {[%clk 0:00:06]}  Rb6 {[%clk 0:00:08]} 63. Kf4 {[%clk 0:00:06]}  Ke7 {[%clk 0:00:09]} 64. Ke5 {[%clk 0:00:07]}  Re6+ {[%clk 0:00:09]} 65. Kf4 {[%clk 0:00:07]}  Kd6 {[%clk 0:00:09]} 66. Bd3 {[%clk 0:00:06]}  Kd5 {[%clk 0:00:09]} 67. Bc2 {[%clk 0:00:05]}  Kd4 {[%clk 0:00:09]} 68. Bxg6 {[%clk 0:00:04]}  Rxg6 {[%clk 0:00:09]} 69. Kf5 {[%clk 0:00:04]}  Rg8 {[%clk 0:00:02]} 70. g6 {[%clk 0:00:05]}  Kd5 {[%clk 0:00:02]} 71. Kf6 {[%clk 0:00:06]}  Rf8+ {[%clk 0:00:02]} 72. Ke7 {[%clk 0:00:06]}  Rf1 {[%clk 0:00:02]} 73. g7 {[%clk 0:00:06]}  Rg1 {[%clk 0:00:03]} 74. Kf7 {[%clk 0:00:07]}  Rf1+ {[%clk 0:00:04]} 75. Ke7 {[%clk 0:00:07]}  Rg1 {[%clk 0:00:04]} 76. Kf7 {[%clk 0:00:08]}  Rf1+ {[%clk 0:00:05]} 77. Ke7 {[%clk 0:00:08]} 1/2-1/2


[Site "https://www.chess.com"]

[Event "Titled Tuesday Blitz June 20 Early 2023"]
[White "Galchenko, Matvey"]
[Black "Vaibhav Jayant Raut"]
[WhiteFideId "24175480"]
[BlackFideId "5089034"]
[WhiteElo "2423"]
[BlackElo "2156"]
[Result "1-0"]
[Round "9"]
[TimeControl "180+2"]
[Date "2023.06.20"]
[WhiteClock "0:01:52"]
[BlackClock "0:01:29"]
[Board "38"]

1. f4 {[%clk 0:03:00]}  d5 {[%clk 0:02:56]} 2. Nf3 {[%clk 0:02:59]}  Nf6 {[%clk 0:02:56]} 3. g3 {[%clk 0:03:00]}  g6 {[%clk 0:02:56]} 4. Bg2 {[%clk 0:03:00]}  Bg7 {[%clk 0:02:56]} 5. O-O {[%clk 0:03:01]}  O-O {[%clk 0:02:57]} 6. d3 {[%clk 0:03:02]}  c5 {[%clk 0:02:58]} 7. Nc3 {[%clk 0:03:03]}  Nc6 {[%clk 0:02:58]} 8. e4 {[%clk 0:03:03]}  dxe4 {[%clk 0:02:55]} 9. dxe4 {[%clk 0:03:04]}  Nd4 {[%clk 0:02:53]} 10. e5 {[%clk 0:03:04]}  Nxf3+ {[%clk 0:02:47]} 11. Qxf3 {[%clk 0:03:04]}  Ng4 {[%clk 0:02:43]} 12. h3 {[%clk 0:03:04]}  Nh6 {[%clk 0:02:43]} 13. g4 {[%clk 0:03:04]}  f5 {[%clk 0:02:40]} 14. exf6 {[%clk 0:03:02]}  exf6 {[%clk 0:02:39]} 15. Be3 {[%clk 0:02:59]}  f5 {[%clk 0:02:23]} 16. g5 {[%clk 0:02:56]}  Nf7 {[%clk 0:02:22]} 17. Bxc5 {[%clk 0:02:56]}  Re8 {[%clk 0:02:23]} 18. Rad1 {[%clk 0:02:56]}  Qc7 {[%clk 0:02:21]} 19. b4 {[%clk 0:02:41]}  Be6 {[%clk 0:02:20]} 20. Nb5 {[%clk 0:02:40]}  Qc8 {[%clk 0:02:14]} 21. Rfe1 {[%clk 0:02:30]}  Bc4 {[%clk 0:02:07]} 22. Rxe8+ {[%clk 0:02:21]}  Qxe8 {[%clk 0:02:07]} 23. Nc7 {[%clk 0:02:21]}  Be2 {[%clk 0:02:07]} 24. Qxb7 {[%clk 0:01:54]}  Bxd1 {[%clk 0:01:33]} 25. Nxe8 {[%clk 0:01:52]}  Rxe8 {[%clk 0:01:29]} 26. Bd5 {[%clk 0:01:52]} 1-0


[Site "https://www.chess.com"]

[Event "Titled Tuesday Blitz June 20 Early 2023"]
[White "Souleidis, Georgios"]
[Black "Simonian, Hrair"]
[WhiteFideId "4206827"]
[BlackFideId "13302337"]
[WhiteElo "2401"]
[BlackElo "2447"]
[Result "1/2-1/2"]
[Round "9"]
[TimeControl "180+2"]
[Date "2023.06.20"]
[WhiteClock "0:00:57"]
[BlackClock "0:00:50"]
[Board "40"]

1. e4 {[%clk 0:03:00]}  c5 {[%clk 0:02:57]} 2. Be2 {[%clk 0:03:01]}  Nc6 {[%clk 0:02:56]} 3. d3 {[%clk 0:03:01]}  g6 {[%clk 0:02:56]} 4. f4 {[%clk 0:03:01]}  Bg7 {[%clk 0:02:57]} 5. Nf3 {[%clk 0:03:02]}  d6 {[%clk 0:02:57]} 6. O-O {[%clk 0:03:03]}  e6 {[%clk 0:02:54]} 7. c3 {[%clk 0:03:03]}  Nge7 {[%clk 0:02:54]} 8. Be3 {[%clk 0:03:03]}  O-O {[%clk 0:02:54]} 9. d4 {[%clk 0:03:04]}  cxd4 {[%clk 0:02:53]} 10. cxd4 {[%clk 0:03:05]}  d5 {[%clk 0:02:54]} 11. e5 {[%clk 0:03:05]}  Nf5 {[%clk 0:02:53]} 12. Bf2 {[%clk 0:03:06]}  h5 {[%clk 0:02:53]} 13. Qd2 {[%clk 0:03:06]}  a6 {[%clk 0:02:53]} 14. Nc3 {[%clk 0:03:07]}  b5 {[%clk 0:02:53]} 15. Rac1 {[%clk 0:03:07]}  Bd7 {[%clk 0:02:53]} 16. b3 {[%clk 0:03:05]}  Rc8 {[%clk 0:02:49]} 17. g3 {[%clk 0:03:05]}  Qe7 {[%clk 0:02:47]} 18. h3 {[%clk 0:03:04]}  h4 {[%clk 0:02:34]} 19. g4 {[%clk 0:03:00]}  Ng3 {[%clk 0:02:31]} 20. Bxg3 {[%clk 0:02:59]}  hxg3 {[%clk 0:02:31]} 21. Kg2 {[%clk 0:02:54]}  Rc7 {[%clk 0:02:04]} 22. Kxg3 {[%clk 0:02:54]}  Rfc8 {[%clk 0:02:04]} 23. Bd3 {[%clk 0:02:20]}  b4 {[%clk 0:02:01]} 24. Na4 {[%clk 0:02:09]}  a5 {[%clk 0:01:57]} 25. Nb6 {[%clk 0:02:02]}  Rb8 {[%clk 0:01:54]} 26. Nxd7 {[%clk 0:02:02]}  Qxd7 {[%clk 0:01:55]} 27. Rc2 {[%clk 0:01:56]}  Ne7 {[%clk 0:01:46]} 28. Rfc1 {[%clk 0:01:56]}  Rxc2 {[%clk 0:01:41]} 29. Rxc2 {[%clk 0:01:56]}  a4 {[%clk 0:01:40]} 30. Qc1 {[%clk 0:01:53]}  axb3 {[%clk 0:01:16]} 31. axb3 {[%clk 0:01:52]}  Rc8 {[%clk 0:01:14]} 32. Rxc8+ {[%clk 0:01:52]}  Qxc8 {[%clk 0:01:12]} 33. Qxc8+ {[%clk 0:01:47]}  Nxc8 {[%clk 0:01:12]} 34. Bb5 {[%clk 0:01:35]}  Bf8 {[%clk 0:01:09]} 35. h4 {[%clk 0:01:29]}  Be7 {[%clk 0:01:03]} 36. g5 {[%clk 0:01:19]}  Bd8 {[%clk 0:01:01]} 37. Kf2 {[%clk 0:01:11]}  Ne7 {[%clk 0:00:56]} 38. Bd3 {[%clk 0:01:06]}  Bb6 {[%clk 0:00:55]} 39. Ke3 {[%clk 0:01:05]}  Nc6 {[%clk 0:00:55]} 40. Bb5 {[%clk 0:01:05]}  Ne7 {[%clk 0:00:52]} 41. Bd3 {[%clk 0:01:04]}  Nc6 {[%clk 0:00:49]} 42. Bb5 {[%clk 0:01:04]}  Ne7 {[%clk 0:00:50]} 43. Bd3 {[%clk 0:00:57]} 1/2-1/2


[Site "https://www.chess.com"]

[Event "Titled Tuesday Blitz June 20 Early 2023"]
[White "Fiorito, Joaquin"]
[Black "Weetik, Vjacheslav"]
[WhiteFideId "180173"]
[BlackFideId "4153472"]
[WhiteElo "2199"]
[BlackElo "2469"]
[Result "0-1"]
[Round "9"]
[TimeControl "180+2"]
[Date "2023.06.20"]
[WhiteClock "0:00:00"]
[BlackClock "0:00:07"]
[Board "42"]

1. d4 {[%clk 0:02:59]}  Nf6 {[%clk 0:02:59]} 2. c4 {[%clk 0:02:59]}  e6 {[%clk 0:03:00]} 3. Nc3 {[%clk 0:03:00]}  Bb4 {[%clk 0:02:59]} 4. e3 {[%clk 0:03:00]}  O-O {[%clk 0:02:59]} 5. Bd2 {[%clk 0:03:01]}  Re8 {[%clk 0:02:53]} 6. Nf3 {[%clk 0:02:57]}  d5 {[%clk 0:02:48]} 7. Rc1 {[%clk 0:02:51]}  a6 {[%clk 0:02:41]} 8. cxd5 {[%clk 0:02:41]}  exd5 {[%clk 0:02:41]} 9. Bd3 {[%clk 0:02:41]}  c6 {[%clk 0:02:23]} 10. O-O {[%clk 0:02:40]}  Nbd7 {[%clk 0:02:20]} 11. Qc2 {[%clk 0:02:39]}  a5 {[%clk 0:02:11]} 12. Rfe1 {[%clk 0:02:33]}  Nf8 {[%clk 0:02:00]} 13. Ne5 {[%clk 0:02:31]}  N6d7 {[%clk 0:02:00]} 14. a3 {[%clk 0:02:17]}  Bd6 {[%clk 0:01:53]} 15. Nxd7 {[%clk 0:02:12]}  Bxd7 {[%clk 0:01:53]} 16. e4 {[%clk 0:02:12]}  dxe4 {[%clk 0:01:46]} 17. Nxe4 {[%clk 0:02:13]}  Bf5 {[%clk 0:01:33]} 18. Nxd6 {[%clk 0:01:50]}  Rxe1+ {[%clk 0:01:33]} 19. Bxe1 {[%clk 0:01:50]}  Bxd3 {[%clk 0:01:33]} 20. Nxb7 {[%clk 0:01:50]}  Qxd4 {[%clk 0:01:08]} 21. Qxc6 {[%clk 0:01:50]}  Qxb2 {[%clk 0:00:57]} 22. Nxa5 {[%clk 0:01:43]}  Qxa3 {[%clk 0:00:36]} 23. Qc3 {[%clk 0:00:24]}  Rxa5 {[%clk 0:00:34]} 24. Qd2 {[%clk 0:00:15]}  Bf5 {[%clk 0:00:20]} 25. h3 {[%clk 0:00:15]}  Rd5 {[%clk 0:00:19]} 26. Qf4 {[%clk 0:00:12]}  Ng6 {[%clk 0:00:11]} 27. Qb8+ {[%clk 0:00:04]}  Qf8 {[%clk 0:00:11]} 28. Qb7 {[%clk 0:00:04]}  h6 {[%clk 0:00:09]} 29. Qxd5 {[%clk 0:00:04]}  Be6 {[%clk 0:00:10]} 30. Qd4 {[%clk 0:00:04]}  Ne7 {[%clk 0:00:09]} 31. Bc3 {[%clk 0:00:04]}  Nf5 {[%clk 0:00:10]} 32. Qe5 {[%clk 0:00:05]}  Qa3 {[%clk 0:00:09]} 33. Ra1 {[%clk 0:00:04]}  Qb3 {[%clk 0:00:08]} 34. g4 {[%clk 0:00:04]}  f6 {[%clk 0:00:07]} 35. Qf4 {[%clk 0:00:00]}  Qxc3 {[%clk 0:00:07]} 0-1


[Site "https://www.chess.com"]

[Event "Titled Tuesday Blitz June 20 Early 2023"]
[White "Domingo Nunez, Alejandro"]
[Black "Rohith Krishna S"]
[WhiteFideId "22245561"]
[BlackFideId "46617051"]
[WhiteElo "2291"]
[BlackElo "2270"]
[Result "0-1"]
[Round "9"]
[TimeControl "180+2"]
[Date "2023.06.20"]
[WhiteClock "0:00:00"]
[BlackClock "0:00:42"]
[Board "45"]

1. Nf3 {[%clk 0:03:00]}  Nc6 {[%clk 0:02:59]} 2. d4 {[%clk 0:03:00]}  d5 {[%clk 0:02:59]} 3. g3 {[%clk 0:03:00]}  Bf5 {[%clk 0:02:59]} 4. Bg2 {[%clk 0:03:00]}  e6 {[%clk 0:02:58]} 5. O-O {[%clk 0:03:00]}  h5 {[%clk 0:02:58]} 6. c4 {[%clk 0:02:59]}  Be7 {[%clk 0:02:58]} 7. Nc3 {[%clk 0:02:59]}  Nf6 {[%clk 0:02:59]} 8. Ne5 {[%clk 0:02:59]}  Nxe5 {[%clk 0:02:52]} 9. dxe5 {[%clk 0:02:59]}  Ng4 {[%clk 0:02:52]} 10. cxd5 {[%clk 0:02:59]}  Nxe5 {[%clk 0:02:52]} 11. dxe6 {[%clk 0:02:44]}  Bxe6 {[%clk 0:02:53]} 12. Bxb7 {[%clk 0:02:44]}  Qb8 {[%clk 0:02:53]} 13. Bg2 {[%clk 0:02:30]}  h4 {[%clk 0:02:48]} 14. Bf4 {[%clk 0:02:29]}  Ng6 {[%clk 0:02:48]} 15. Qa4+ {[%clk 0:02:25]}  Kf8 {[%clk 0:02:47]} 16. Qc6 {[%clk 0:02:23]}  Nxf4 {[%clk 0:02:40]} 17. gxf4 {[%clk 0:02:22]}  h3 {[%clk 0:02:25]} 18. Qxa8 {[%clk 0:02:22]}  Qxa8 {[%clk 0:02:25]} 19. Bxa8 {[%clk 0:02:21]}  g5 {[%clk 0:02:22]} 20. fxg5 {[%clk 0:02:11]}  Bxg5 {[%clk 0:02:17]} 21. Kh1 {[%clk 0:02:11]}  Bf4 {[%clk 0:02:15]} 22. e3 {[%clk 0:02:09]}  Bd6 {[%clk 0:02:15]} 23. Bd5 {[%clk 0:02:04]}  Bf5 {[%clk 0:02:13]} 24. Rg1 {[%clk 0:02:03]}  Rh6 {[%clk 0:02:11]} 25. Rg5 {[%clk 0:02:02]}  Rf6 {[%clk 0:02:11]} 26. f4 {[%clk 0:02:01]}  Bc5 {[%clk 0:02:07]} 27. e4 {[%clk 0:01:59]}  Bd7 {[%clk 0:02:06]} 28. Rf1 {[%clk 0:01:49]}  Bd4 {[%clk 0:02:00]} 29. e5 {[%clk 0:01:08]}  Rb6 {[%clk 0:01:59]} 30. Ne2 {[%clk 0:01:03]}  Bxb2 {[%clk 0:01:49]} 31. Rb1 {[%clk 0:01:00]}  a5 {[%clk 0:01:46]} 32. f5 {[%clk 0:00:28]}  a4 {[%clk 0:01:42]} 33. e6 {[%clk 0:00:28]}  fxe6 {[%clk 0:01:42]} 34. fxe6 {[%clk 0:00:29]}  Be8 {[%clk 0:01:42]} 35. Rg3 {[%clk 0:00:25]}  a3 {[%clk 0:01:33]} 36. Rxh3 {[%clk 0:00:25]}  Rd6 {[%clk 0:01:34]} 37. Bg2 {[%clk 0:00:25]}  Rd2 {[%clk 0:01:33]} 38. Nf4 {[%clk 0:00:23]}  Be5 {[%clk 0:01:31]} 39. Rh7 {[%clk 0:00:23]}  Bxf4 {[%clk 0:01:28]} 40. Rf1 {[%clk 0:00:21]}  Kg8 {[%clk 0:01:14]} 41. Re7 {[%clk 0:00:20]}  Bb5 {[%clk 0:01:14]} 42. Rg1 {[%clk 0:00:10]}  Be3 {[%clk 0:01:13]} 43. Re1 {[%clk 0:00:09]}  Bf2 {[%clk 0:01:10]} 44. Rc1 {[%clk 0:00:09]}  Rxa2 {[%clk 0:00:59]} 45. Rexc7 {[%clk 0:00:10]}  Be3 {[%clk 0:00:57]} 46. e7 {[%clk 0:00:08]}  Re2 {[%clk 0:00:47]} 47. Bd5+ {[%clk 0:00:06]}  Kh8 {[%clk 0:00:46]} 48. Rf1 {[%clk 0:00:00]}  Bf2 {[%clk 0:00:42]} 0-1


[Site "https://www.chess.com"]